[Event "Titled Tuesday Blitz July 05 Early 2022"]
[White "Corrales Jimenez, Fidel"]
[Black "Mkrtchian, Lilit"]
[WhiteFideId "3506690"]
[BlackFideId "13300601"]
[WhiteElo "2541"]
[BlackElo "2310"]
[Result "1-0"]
[Round "08"]
[TimeControl "180+1"]
[Date "2022.07.05"]
[WhiteClock "0:01:37"]
[BlackClock "0:00:05"]

1. d4 {[%clk 0:03:00]}  Nf6 {[%clk 0:02:59]} 2. c4 {[%clk 0:03:00]}  e6 {[%clk 0:02:59]} 3. Nc3 {[%clk 0:03:01]}  Bb4 {[%clk 0:02:56]} 4. e3 {[%clk 0:03:01]}  O-O {[%clk 0:02:55]} 5. Bd3 {[%clk 0:03:00]}  d5 {[%clk 0:02:55]} 6. Ne2 {[%clk 0:02:55]}  c5 {[%clk 0:02:41]} 7. a3 {[%clk 0:02:51]}  Bxc3+ {[%clk 0:02:39]} 8. bxc3 {[%clk 0:02:48]}  dxc4 {[%clk 0:02:38]} 9. Bxc4 {[%clk 0:02:48]}  Qc7 {[%clk 0:02:37]} 10. Bd3 {[%clk 0:02:43]}  e5 {[%clk 0:02:25]} 11. O-O {[%clk 0:02:40]}  b6 {[%clk 0:01:54]} 12. Bb2 {[%clk 0:02:36]}  c4 {[%clk 0:01:49]} 13. Bc2 {[%clk 0:02:33]}  e4 {[%clk 0:01:47]} 14. Ng3 {[%clk 0:02:32]}  Bb7 {[%clk 0:01:47]} 15. a4 {[%clk 0:02:31]}  Qd7 {[%clk 0:01:34]} 16. Ba3 {[%clk 0:02:29]}  Re8 {[%clk 0:01:34]} 17. Qe2 {[%clk 0:02:18]}  Bd5 {[%clk 0:01:32]} 18. f3 {[%clk 0:01:58]}  Nc6 {[%clk 0:01:07]} 19. fxe4 {[%clk 0:01:52]}  Nxe4 {[%clk 0:00:51]} 20. Nf5 {[%clk 0:01:50]}  Re6 {[%clk 0:00:30]} 21. Qg4 {[%clk 0:01:46]}  f6 {[%clk 0:00:06]} 22. Bxe4 {[%clk 0:01:40]}  Bxe4 {[%clk 0:00:05]} 23. Nxg7 {[%clk 0:01:37]} 1-0


[Site "https://www.chess.com"]

[Event "Titled Tuesday Blitz July 05 Early 2022"]
[White "Dubov, Daniil"]
[Black "Moussard, Jules"]
[WhiteFideId "24126055"]
[BlackFideId "642908"]
[WhiteElo "2791"]
[BlackElo "2589"]
[Result "1/2-1/2"]
[Round "08"]
[TimeControl "180+1"]
[Date "2022.07.05"]
[WhiteClock "0:00:06"]
[BlackClock "0:00:07"]

1. c4 {[%clk 0:02:52]}  e6 {[%clk 0:02:59]} 2. Nc3 {[%clk 0:02:51]}  d5 {[%clk 0:03:00]} 3. d4 {[%clk 0:02:52]}  Nf6 {[%clk 0:02:59]} 4. cxd5 {[%clk 0:02:52]}  exd5 {[%clk 0:03:00]} 5. Bg5 {[%clk 0:02:52]}  c6 {[%clk 0:03:00]} 6. e3 {[%clk 0:02:52]}  h6 {[%clk 0:03:00]} 7. Bh4 {[%clk 0:02:52]}  Be7 {[%clk 0:03:00]} 8. Bd3 {[%clk 0:02:51]}  O-O {[%clk 0:02:59]} 9. Nge2 {[%clk 0:02:50]}  Ne4 {[%clk 0:02:50]} 10. Bxe7 {[%clk 0:02:49]}  Qxe7 {[%clk 0:02:51]} 11. Bxe4 {[%clk 0:02:46]}  dxe4 {[%clk 0:02:51]} 12. Qc2 {[%clk 0:02:46]}  Re8 {[%clk 0:02:48]} 13. O-O {[%clk 0:02:40]}  Nd7 {[%clk 0:02:47]} 14. d5 {[%clk 0:02:37]}  Nf6 {[%clk 0:02:39]} 15. dxc6 {[%clk 0:02:16]}  bxc6 {[%clk 0:02:40]} 16. Rfd1 {[%clk 0:02:16]}  Rb8 {[%clk 0:02:34]} 17. Rac1 {[%clk 0:02:10]}  Ba6 {[%clk 0:02:08]} 18. Nd4 {[%clk 0:02:05]}  Bd3 {[%clk 0:02:02]} 19. Qd2 {[%clk 0:01:35]}  Ng4 {[%clk 0:01:53]} 20. h3 {[%clk 0:00:41]}  Ne5 {[%clk 0:01:53]} 21. Nf5 {[%clk 0:00:41]}  Qg5 {[%clk 0:01:22]} 22. Ng3 {[%clk 0:00:41]}  Nc4 {[%clk 0:01:22]} 23. Ncxe4 {[%clk 0:00:33]}  Nxd2 {[%clk 0:01:16]} 24. Nxg5 {[%clk 0:00:32]}  Rxb2 {[%clk 0:01:16]} 25. Nf3 {[%clk 0:00:26]}  Nxf3+ {[%clk 0:01:16]} 26. gxf3 {[%clk 0:00:27]}  Bb5 {[%clk 0:01:17]} 27. a3 {[%clk 0:00:25]}  Rb3 {[%clk 0:00:55]} 28. Ra1 {[%clk 0:00:24]}  c5 {[%clk 0:00:55]} 29. Ne4 {[%clk 0:00:20]}  Be2 {[%clk 0:00:49]} 30. Re1 {[%clk 0:00:18]}  Rb2 {[%clk 0:00:40]} 31. Kg2 {[%clk 0:00:14]}  c4 {[%clk 0:00:39]} 32. Rac1 {[%clk 0:00:13]}  Re6 {[%clk 0:00:29]} 33. Ng3 {[%clk 0:00:07]}  Bd3 {[%clk 0:00:30]} 34. Rc3 {[%clk 0:00:04]}  a5 {[%clk 0:00:23]} 35. f4 {[%clk 0:00:03]}  a4 {[%clk 0:00:23]} 36. Kf3 {[%clk 0:00:03]}  Rb3 {[%clk 0:00:22]} 37. Rec1 {[%clk 0:00:03]}  Rxc3 {[%clk 0:00:20]} 38. Rxc3 {[%clk 0:00:03]}  Rb6 {[%clk 0:00:21]} 39. Ne4 {[%clk 0:00:03]}  Rb3 {[%clk 0:00:21]} 40. Rc1 {[%clk 0:00:03]}  Rxa3 {[%clk 0:00:21]} 41. Nc5 {[%clk 0:00:03]}  Rb3 {[%clk 0:00:16]} 42. Nxa4 {[%clk 0:00:02]}  h5 {[%clk 0:00:10]} 43. Nc3 {[%clk 0:00:02]}  g6 {[%clk 0:00:10]} 44. e4 {[%clk 0:00:03]}  Kg7 {[%clk 0:00:09]} 45. h4 {[%clk 0:00:03]}  f6 {[%clk 0:00:09]} 46. Ke3 {[%clk 0:00:04]}  Kf7 {[%clk 0:00:09]} 47. Kd4 {[%clk 0:00:04]}  Rb2 {[%clk 0:00:10]} 48. Ke3 {[%clk 0:00:04]}  Rb3 {[%clk 0:00:08]} 49. Kd4 {[%clk 0:00:04]}  Rb2 {[%clk 0:00:09]} 50. Ke3 {[%clk 0:00:04]}  Ke6 {[%clk 0:00:09]} 51. Ra1 {[%clk 0:00:03]}  Rb3 {[%clk 0:00:10]} 52. Ra6+ {[%clk 0:00:04]}  Kd7 {[%clk 0:00:08]} 53. Kd4 {[%clk 0:00:05]}  Rb2 {[%clk 0:00:07]} 54. Rxf6 {[%clk 0:00:05]}  Rxf2 {[%clk 0:00:07]} 55. Ke3 {[%clk 0:00:05]}  Rh2 {[%clk 0:00:06]} 56. Rxg6 {[%clk 0:00:05]}  Rxh4 {[%clk 0:00:05]} 57. f5 {[%clk 0:00:06]}  Rh3+ {[%clk 0:00:02]} 58. Kd4 {[%clk 0:00:06]}  Bf1 {[%clk 0:00:03]} 59. Nd5 {[%clk 0:00:04]}  c3 {[%clk 0:00:02]} 60. Nxc3 {[%clk 0:00:03]}  Rd3+ {[%clk 0:00:02]} 61. Kc4 {[%clk 0:00:04]}  Rd6+ {[%clk 0:00:01]} 62. Kc5 {[%clk 0:00:04]}  Rxg6 {[%clk 0:00:02]} 63. fxg6 {[%clk 0:00:04]}  Ke6 {[%clk 0:00:03]} 64. Nd1 {[%clk 0:00:04]}  Bd3 {[%clk 0:00:03]} 65. Nf2 {[%clk 0:00:04]}  Bb1 {[%clk 0:00:03]} 66. Kd4 {[%clk 0:00:04]}  Kf6 {[%clk 0:00:04]} 67. Ke3 {[%clk 0:00:05]}  Kxg6 {[%clk 0:00:04]} 68. Kf4 {[%clk 0:00:05]}  Bxe4 {[%clk 0:00:05]} 69. Nxe4 {[%clk 0:00:05]}  h4 {[%clk 0:00:06]} 70. Ng5 {[%clk 0:00:05]}  h3 {[%clk 0:00:07]} 71. Nxh3 {[%clk 0:00:06]} 1/2-1/2


[Site "https://www.chess.com"]

[Event "Titled Tuesday Blitz July 05 Early 2022"]
[White "Dushyant Sharma"]
[Black "Navarrete Mendez, Gonzalo Alberto"]
[WhiteFideId "25065130"]
[BlackFideId "5106850"]
[WhiteElo "2105"]
[BlackElo "2261"]
[Result "0-1"]
[Round "08"]
[TimeControl "180+1"]
[Date "2022.07.05"]
[WhiteClock "0:01:06"]
[BlackClock "0:00:42"]

1. e4 {[%clk 0:03:00]}  e5 {[%clk 0:03:00]} 2. Nf3 {[%clk 0:02:59]}  Nc6 {[%clk 0:03:00]} 3. Nc3 {[%clk 0:02:58]}  Nf6 {[%clk 0:03:00]} 4. Bb5 {[%clk 0:02:53]}  Nd4 {[%clk 0:03:00]} 5. Ba4 {[%clk 0:02:51]}  Bc5 {[%clk 0:02:57]} 6. d3 {[%clk 0:02:50]}  c6 {[%clk 0:02:54]} 7. O-O {[%clk 0:02:50]}  d6 {[%clk 0:02:54]} 8. Be3 {[%clk 0:02:48]}  Bg4 {[%clk 0:02:51]} 9. Bxd4 {[%clk 0:02:48]}  Bxd4 {[%clk 0:02:49]} 10. Nb1 {[%clk 0:02:37]}  Bxb2 {[%clk 0:02:48]} 11. Nbd2 {[%clk 0:02:37]}  Bxa1 {[%clk 0:02:46]} 12. Qxa1 {[%clk 0:02:38]}  O-O {[%clk 0:02:44]} 13. Bb3 {[%clk 0:02:35]}  Nh5 {[%clk 0:02:42]} 14. h3 {[%clk 0:02:32]}  Bxf3 {[%clk 0:02:42]} 15. Nxf3 {[%clk 0:02:33]}  Nf4 {[%clk 0:02:42]} 16. d4 {[%clk 0:02:32]}  exd4 {[%clk 0:02:37]} 17. Nxd4 {[%clk 0:02:31]}  Qf6 {[%clk 0:02:37]} 18. c3 {[%clk 0:02:27]}  Qg5 {[%clk 0:02:24]} 19. g3 {[%clk 0:02:25]}  Nxh3+ {[%clk 0:02:22]} 20. Kh2 {[%clk 0:02:25]}  c5 {[%clk 0:01:44]} 21. Nf5 {[%clk 0:02:11]}  g6 {[%clk 0:01:21]} 22. f4 {[%clk 0:01:56]}  Nxf4 {[%clk 0:01:09]} 23. Rxf4 {[%clk 0:01:38]}  gxf5 {[%clk 0:01:07]} 24. Rxf5 {[%clk 0:01:37]}  Qd2+ {[%clk 0:01:01]} 25. Kh3 {[%clk 0:01:37]}  Qh6+ {[%clk 0:01:01]} 26. Kg2 {[%clk 0:01:36]}  Kh8 {[%clk 0:00:56]} 27. Bxf7 {[%clk 0:01:30]}  Qg7 {[%clk 0:00:55]} 28. Qf1 {[%clk 0:01:26]}  Qxc3 {[%clk 0:00:49]} 29. Qf4 {[%clk 0:01:22]}  Qb2+ {[%clk 0:00:47]} 30. Kh3 {[%clk 0:01:21]}  Qg7 {[%clk 0:00:48]} 31. Rf6 {[%clk 0:01:17]}  Rad8 {[%clk 0:00:45]} 32. g4 {[%clk 0:01:16]}  Rd7 {[%clk 0:00:42]} 33. g5 {[%clk 0:01:06]}  Rdxf7 {[%clk 0:00:42]} 34. Qxd6 {[%clk 0:01:06]}  Rxf6 {[%clk 0:00:41]} 35. gxf6 {[%clk 0:01:06]}  Qxf6 {[%clk 0:00:42]} 0-1


[Site "https://www.chess.com"]

[Event "Titled Tuesday Blitz July 05 Early 2022"]
[White "Fedoseev, Vladimir"]
[Black "Hansen, Eric"]
[WhiteFideId "24130737"]
[BlackFideId "2606771"]
[WhiteElo "2726"]
[BlackElo "2568"]
[Result "1-0"]
[Round "08"]
[TimeControl "180+1"]
[Date "2022.07.05"]
[WhiteClock "0:00:16"]
[BlackClock "0:00:01"]

1. e4 {[%clk 0:02:58]}  c5 {[%clk 0:02:56]} 2. Nf3 {[%clk 0:02:58]}  e6 {[%clk 0:02:55]} 3. d4 {[%clk 0:02:58]}  cxd4 {[%clk 0:02:56]} 4. Nxd4 {[%clk 0:02:58]}  Nc6 {[%clk 0:02:56]} 5. Nc3 {[%clk 0:02:57]}  a6 {[%clk 0:02:48]} 6. Qd3 {[%clk 0:02:52]}  Qc7 {[%clk 0:02:43]} 7. Nxc6 {[%clk 0:02:51]}  Qxc6 {[%clk 0:02:35]} 8. Be2 {[%clk 0:02:46]}  d6 {[%clk 0:01:41]} 9. Bf4 {[%clk 0:02:44]}  e5 {[%clk 0:01:35]} 10. Be3 {[%clk 0:02:36]}  Be6 {[%clk 0:01:31]} 11. Nd5 {[%clk 0:02:30]}  Bxd5 {[%clk 0:01:31]} 12. exd5 {[%clk 0:02:30]}  Qc7 {[%clk 0:01:31]} 13. g4 {[%clk 0:02:24]}  Nf6 {[%clk 0:01:27]} 14. g5 {[%clk 0:02:23]}  Nd7 {[%clk 0:01:26]} 15. h4 {[%clk 0:02:23]}  g6 {[%clk 0:01:24]} 16. h5 {[%clk 0:02:18]}  Rg8 {[%clk 0:01:12]} 17. O-O-O {[%clk 0:02:12]}  O-O-O {[%clk 0:01:12]} 18. Rh4 {[%clk 0:02:10]}  Nc5 {[%clk 0:01:00]} 19. Qa3 {[%clk 0:02:05]}  e4 {[%clk 0:00:50]} 20. hxg6 {[%clk 0:01:46]}  hxg6 {[%clk 0:00:47]} 21. b4 {[%clk 0:01:44]}  Nd3+ {[%clk 0:00:41]} 22. Kb1 {[%clk 0:01:42]}  Ne5 {[%clk 0:00:41]} 23. Rxe4 {[%clk 0:01:41]}  Kb8 {[%clk 0:00:33]} 24. f4 {[%clk 0:01:40]}  Rc8 {[%clk 0:00:33]} 25. Rc1 {[%clk 0:01:31]}  Nd7 {[%clk 0:00:30]} 26. Rc4 {[%clk 0:01:24]}  Qd8 {[%clk 0:00:30]} 27. Rxc8+ {[%clk 0:01:23]}  Qxc8 {[%clk 0:00:28]} 28. c4 {[%clk 0:01:21]}  Bg7 {[%clk 0:00:28]} 29. c5 {[%clk 0:01:16]}  Qe8 {[%clk 0:00:28]} 30. Qd3 {[%clk 0:01:08]}  Ne5 {[%clk 0:00:18]} 31. fxe5 {[%clk 0:01:02]}  Qxe5 {[%clk 0:00:18]} 32. Kc2 {[%clk 0:01:03]}  Re8 {[%clk 0:00:18]} 33. Kd2 {[%clk 0:01:00]}  Qb2+ {[%clk 0:00:17]} 34. Kd1 {[%clk 0:01:00]}  Qxb4 {[%clk 0:00:16]} 35. Bd2 {[%clk 0:00:57]}  Qa4+ {[%clk 0:00:16]} 36. Qb3 {[%clk 0:00:56]}  Qh4 {[%clk 0:00:12]} 37. c6 {[%clk 0:00:50]}  Re7 {[%clk 0:00:06]} 38. Bxa6 {[%clk 0:00:38]}  Qg4+ {[%clk 0:00:03]} 39. Kc2 {[%clk 0:00:38]}  Qg2 {[%clk 0:00:02]} 40. Bd3 {[%clk 0:00:33]}  Bd4 {[%clk 0:00:01]} 41. Rd1 {[%clk 0:00:30]}  Bc5 {[%clk 0:00:01]} 42. Kb1 {[%clk 0:00:30]}  b6 {[%clk 0:00:02]} 43. Bc1 {[%clk 0:00:28]}  Qg4 {[%clk 0:00:02]} 44. Rf1 {[%clk 0:00:26]}  Ra7 {[%clk 0:00:01]} 45. Rf4 {[%clk 0:00:24]}  Qg1 {[%clk 0:00:01]} 46. Rc4 {[%clk 0:00:23]}  Kc7 {[%clk 0:00:01]} 47. Qc3 {[%clk 0:00:18]}  Ra5 {[%clk 0:00:01]} 48. Rf4 {[%clk 0:00:16]} 1-0


[Site "https://www.chess.com"]

[Event "Titled Tuesday Blitz July 05 Early 2022"]
[White "Garcia Ramos, Daniel"]
[Black "Zhigalko, Sergei"]
[WhiteFideId "32010311"]
[BlackFideId "13502956"]
[WhiteElo "2268"]
[BlackElo "2662"]
[Result "0-1"]
[Round "08"]
[TimeControl "180+1"]
[Date "2022.07.05"]
[WhiteClock "0:00:56"]
[BlackClock "0:00:03"]

1. e4 {[%clk 0:03:00]}  Nf6 {[%clk 0:02:58]} 2. e5 {[%clk 0:03:00]}  Nd5 {[%clk 0:02:58]} 3. d4 {[%clk 0:03:00]}  Nb6 {[%clk 0:02:58]} 4. Nf3 {[%clk 0:03:00]}  d5 {[%clk 0:02:58]} 5. Be2 {[%clk 0:02:59]}  Bf5 {[%clk 0:02:58]} 6. O-O {[%clk 0:02:59]}  e6 {[%clk 0:02:58]} 7. Nbd2 {[%clk 0:03:00]}  c5 {[%clk 0:02:58]} 8. c4 {[%clk 0:02:59]}  Nc6 {[%clk 0:02:54]} 9. dxc5 {[%clk 0:02:59]}  Bxc5 {[%clk 0:02:54]} 10. Nb3 {[%clk 0:02:59]}  Be7 {[%clk 0:02:52]} 11. Nbd4 {[%clk 0:02:55]}  Bg6 {[%clk 0:02:14]} 12. Nxc6 {[%clk 0:02:52]}  bxc6 {[%clk 0:02:13]} 13. b3 {[%clk 0:02:52]}  O-O {[%clk 0:02:09]} 14. Bb2 {[%clk 0:02:49]}  a5 {[%clk 0:02:09]} 15. cxd5 {[%clk 0:02:46]}  Nxd5 {[%clk 0:02:03]} 16. Rc1 {[%clk 0:02:44]}  Qb6 {[%clk 0:02:02]} 17. Nd4 {[%clk 0:02:29]}  c5 {[%clk 0:01:57]} 18. Nb5 {[%clk 0:02:28]}  Rfd8 {[%clk 0:01:53]} 19. Qe1 {[%clk 0:02:18]}  Nf4 {[%clk 0:01:50]} 20. Nd6 {[%clk 0:02:09]}  Bd3 {[%clk 0:00:36]} 21. Bf3 {[%clk 0:02:00]}  Bxf1 {[%clk 0:00:36]} 22. Qxf1 {[%clk 0:01:59]}  Nd5 {[%clk 0:00:23]} 23. Qc4 {[%clk 0:01:45]}  Bxd6 {[%clk 0:00:22]} 24. exd6 {[%clk 0:01:45]}  Qxd6 {[%clk 0:00:23]} 25. g3 {[%clk 0:01:36]}  Rac8 {[%clk 0:00:20]} 26. Qg4 {[%clk 0:01:34]}  e5 {[%clk 0:00:11]} 27. Rd1 {[%clk 0:01:28]}  Qe6 {[%clk 0:00:10]} 28. Qg5 {[%clk 0:01:25]}  f6 {[%clk 0:00:09]} 29. Qd2 {[%clk 0:01:25]}  e4 {[%clk 0:00:09]} 30. Be2 {[%clk 0:01:23]}  e3 {[%clk 0:00:08]} 31. Qc1 {[%clk 0:01:17]}  exf2+ {[%clk 0:00:07]} 32. Kxf2 {[%clk 0:01:18]}  Nb6 {[%clk 0:00:06]} 33. Rxd8+ {[%clk 0:01:16]}  Rxd8 {[%clk 0:00:07]} 34. Qxc5 {[%clk 0:01:16]}  Re8 {[%clk 0:00:06]} 35. Qb5 {[%clk 0:01:07]}  Qe3+ {[%clk 0:00:05]} 36. Kf1 {[%clk 0:01:08]}  Kh8 {[%clk 0:00:03]} 37. Qxa5 {[%clk 0:00:56]}  Qxe2+ {[%clk 0:00:03]} 38. Kg1 {[%clk 0:00:56]}  Qxb2 {[%clk 0:00:04]} 39. Qxb6 {[%clk 0:00:56]}  Re1# {[%clk 0:00:03]} 0-1


[Site "https://www.chess.com"]

[Event "Titled Tuesday Blitz July 05 Early 2022"]
[White "Grandelius, Nils"]
[Black "De Silva, L M S T"]
[WhiteFideId "1710400"]
[BlackFideId "9953698"]
[WhiteElo "2617"]
[BlackElo "1663"]
[Result "1-0"]
[Round "08"]
[TimeControl "180+1"]
[Date "2022.07.05"]
[WhiteClock "0:00:42"]
[BlackClock "0:00:35"]

1. g3 {[%clk 0:03:00]}  d5 {[%clk 0:02:58]} 2. Nf3 {[%clk 0:02:59]}  Nf6 {[%clk 0:02:56]} 3. Bg2 {[%clk 0:03:00]}  e6 {[%clk 0:02:57]} 4. O-O {[%clk 0:03:00]}  Be7 {[%clk 0:02:57]} 5. c4 {[%clk 0:02:59]}  O-O {[%clk 0:02:55]} 6. b3 {[%clk 0:02:58]}  b6 {[%clk 0:02:52]} 7. cxd5 {[%clk 0:02:58]}  exd5 {[%clk 0:02:51]} 8. d4 {[%clk 0:02:56]}  Bb7 {[%clk 0:02:49]} 9. Nc3 {[%clk 0:02:56]}  Nbd7 {[%clk 0:02:46]} 10. Bf4 {[%clk 0:02:48]}  a6 {[%clk 0:02:45]} 11. Rc1 {[%clk 0:02:47]}  c5 {[%clk 0:02:44]} 12. dxc5 {[%clk 0:02:39]}  Nxc5 {[%clk 0:02:45]} 13. Be5 {[%clk 0:02:37]}  Nce4 {[%clk 0:02:41]} 14. Nh4 {[%clk 0:02:22]}  Bc5 {[%clk 0:02:26]} 15. Nf5 {[%clk 0:02:02]}  Nxf2 {[%clk 0:02:20]} 16. Rxf2 {[%clk 0:01:51]}  Bxf2+ {[%clk 0:02:20]} 17. Kh1 {[%clk 0:01:52]}  Ng4 {[%clk 0:02:17]} 18. Bxg7 {[%clk 0:01:46]}  Be3 {[%clk 0:02:15]} 19. Qc2 {[%clk 0:01:34]}  Bxc1 {[%clk 0:02:00]} 20. Qxc1 {[%clk 0:01:30]}  Re8 {[%clk 0:01:37]} 21. Qf4 {[%clk 0:01:23]}  h5 {[%clk 0:01:09]} 22. h3 {[%clk 0:01:01]}  Bc8 {[%clk 0:00:48]} 23. hxg4 {[%clk 0:00:48]}  Bxf5 {[%clk 0:00:46]} 24. Qh6 {[%clk 0:00:48]}  Bh7 {[%clk 0:00:46]} 25. Bf6 {[%clk 0:00:49]}  Qxf6 {[%clk 0:00:43]} 26. Qxf6 {[%clk 0:00:50]}  Rad8 {[%clk 0:00:35]} 27. Bxd5 {[%clk 0:00:42]} 1-0


[Site "https://www.chess.com"]

[Event "Titled Tuesday Blitz July 05 Early 2022"]
[White "Hansen, Sune Berg"]
[Black "Maksimovic, Bojan"]
[WhiteFideId "1400266"]
[BlackFideId "14408120"]
[WhiteElo "2657"]
[BlackElo "2453"]
[Result "0-1"]
[Round "08"]
[TimeControl "180+1"]
[Date "2022.07.05"]
[WhiteClock "0:00:18"]
[BlackClock "0:00:04"]

1. Nf3 {[%clk 0:03:00]}  Nf6 {[%clk 0:02:59]} 2. g3 {[%clk 0:03:01]}  g6 {[%clk 0:03:00]} 3. Bg2 {[%clk 0:03:01]}  Bg7 {[%clk 0:03:00]} 4. O-O {[%clk 0:03:01]}  O-O {[%clk 0:02:59]} 5. d4 {[%clk 0:03:02]}  d5 {[%clk 0:02:58]} 6. c4 {[%clk 0:03:02]}  c6 {[%clk 0:02:59]} 7. Qb3 {[%clk 0:03:01]}  dxc4 {[%clk 0:02:53]} 8. Qxc4 {[%clk 0:03:01]}  Be6 {[%clk 0:02:53]} 9. Qc2 {[%clk 0:02:59]}  Bf5 {[%clk 0:02:51]} 10. Qb3 {[%clk 0:02:58]}  Qb6 {[%clk 0:02:51]} 11. Qa3 {[%clk 0:02:53]}  Na6 {[%clk 0:02:38]} 12. Bd2 {[%clk 0:02:38]}  Qd8 {[%clk 0:02:34]} 13. Nc3 {[%clk 0:02:27]}  Ne4 {[%clk 0:02:33]} 14. Nxe4 {[%clk 0:02:21]}  Bxe4 {[%clk 0:02:34]} 15. Bg5 {[%clk 0:02:20]}  Re8 {[%clk 0:02:29]} 16. Rfd1 {[%clk 0:02:14]}  Qd6 {[%clk 0:02:17]} 17. Qe3 {[%clk 0:02:10]}  Qd5 {[%clk 0:02:09]} 18. Bh6 {[%clk 0:02:04]}  Rad8 {[%clk 0:02:00]} 19. Bxg7 {[%clk 0:02:02]}  Kxg7 {[%clk 0:02:01]} 20. Qc3 {[%clk 0:01:59]}  Kg8 {[%clk 0:01:58]} 21. Rd2 {[%clk 0:01:52]}  Nc7 {[%clk 0:01:56]} 22. Qb4 {[%clk 0:01:41]}  b6 {[%clk 0:01:40]} 23. a4 {[%clk 0:01:30]}  Qd6 {[%clk 0:01:06]} 24. Qb3 {[%clk 0:01:21]}  Nd5 {[%clk 0:01:01]} 25. Ng5 {[%clk 0:01:15]}  Bxg2 {[%clk 0:00:58]} 26. Kxg2 {[%clk 0:01:16]}  Qb4 {[%clk 0:00:51]} 27. Qxb4 {[%clk 0:01:15]}  Nxb4 {[%clk 0:00:52]} 28. Nf3 {[%clk 0:01:12]}  e5 {[%clk 0:00:46]} 29. dxe5 {[%clk 0:01:09]}  Rxd2 {[%clk 0:00:45]} 30. Nxd2 {[%clk 0:01:10]}  Rxe5 {[%clk 0:00:46]} 31. e3 {[%clk 0:01:01]}  Rc5 {[%clk 0:00:38]} 32. Rd1 {[%clk 0:00:54]}  Rc2 {[%clk 0:00:37]} 33. b3 {[%clk 0:00:54]}  Nd3 {[%clk 0:00:19]} 34. Ne4 {[%clk 0:00:50]}  Nc5 {[%clk 0:00:16]} 35. Rd8+ {[%clk 0:00:47]}  Kg7 {[%clk 0:00:16]} 36. Nd6 {[%clk 0:00:47]}  Nxb3 {[%clk 0:00:11]} 37. Rd7 {[%clk 0:00:47]}  Kf6 {[%clk 0:00:10]} 38. Nxf7 {[%clk 0:00:46]}  a5 {[%clk 0:00:11]} 39. Rc7 {[%clk 0:00:40]}  Ke6 {[%clk 0:00:09]} 40. h4 {[%clk 0:00:32]}  h5 {[%clk 0:00:08]} 41. Kf3 {[%clk 0:00:31]}  Nd2+ {[%clk 0:00:08]} 42. Kf4 {[%clk 0:00:31]}  Nc4 {[%clk 0:00:08]} 43. Kg5 {[%clk 0:00:26]}  Rxf2 {[%clk 0:00:05]} 44. Rxc6+ {[%clk 0:00:22]}  Kd5 {[%clk 0:00:04]} 45. Rf6 {[%clk 0:00:21]}  Rxf6 {[%clk 0:00:03]} 46. Kxf6 {[%clk 0:00:21]}  b5 {[%clk 0:00:03]} 47. e4+ {[%clk 0:00:18]}  Kxe4 {[%clk 0:00:02]} 48. axb5 {[%clk 0:00:19]}  a4 {[%clk 0:00:03]} 49. b6 {[%clk 0:00:18]}  Nxb6 {[%clk 0:00:03]} 50. Nd6+ {[%clk 0:00:18]}  Kd3 {[%clk 0:00:03]} 51. Nb5 {[%clk 0:00:19]}  Kc4 {[%clk 0:00:03]} 52. Na3+ {[%clk 0:00:18]}  Kb3 {[%clk 0:00:03]} 53. Nb1 {[%clk 0:00:18]}  Kb2 {[%clk 0:00:03]} 54. Nd2 {[%clk 0:00:18]}  a3 {[%clk 0:00:04]} 0-1


[Site "https://www.chess.com"]

[Event "Titled Tuesday Blitz July 05 Early 2022"]
[White "Ibarra Jerez, Jose Carlos"]
[Black "Tari, Aryan"]
[WhiteFideId "2226332"]
[BlackFideId "1510045"]
[WhiteElo "2628"]
[BlackElo "2612"]
[Result "0-1"]
[Round "08"]
[TimeControl "180+1"]
[Date "2022.07.05"]
[WhiteClock "0:00:05"]
[BlackClock "0:00:10"]

1. e4 {[%clk 0:03:00]}  c6 {[%clk 0:03:00]} 2. Nf3 {[%clk 0:03:00]}  d5 {[%clk 0:03:00]} 3. d3 {[%clk 0:03:01]}  Qc7 {[%clk 0:02:57]} 4. exd5 {[%clk 0:03:01]}  cxd5 {[%clk 0:02:57]} 5. c4 {[%clk 0:03:01]}  dxc4 {[%clk 0:02:40]} 6. dxc4 {[%clk 0:03:01]}  Nc6 {[%clk 0:02:32]} 7. Nc3 {[%clk 0:03:00]}  Bg4 {[%clk 0:02:29]} 8. h3 {[%clk 0:02:43]}  Bxf3 {[%clk 0:02:06]} 9. Qxf3 {[%clk 0:02:43]}  e6 {[%clk 0:02:07]} 10. Bf4 {[%clk 0:02:32]}  Qa5 {[%clk 0:01:45]} 11. O-O-O {[%clk 0:02:27]}  a6 {[%clk 0:01:33]} 12. Kb1 {[%clk 0:01:58]}  Nf6 {[%clk 0:01:33]} 13. g4 {[%clk 0:01:54]}  Bb4 {[%clk 0:01:30]} 14. Ne4 {[%clk 0:01:48]}  Nxe4 {[%clk 0:01:26]} 15. Qxe4 {[%clk 0:01:49]}  O-O {[%clk 0:01:15]} 16. Bd3 {[%clk 0:01:41]}  g6 {[%clk 0:01:15]} 17. Bc2 {[%clk 0:01:34]}  Rfd8 {[%clk 0:01:14]} 18. a3 {[%clk 0:01:23]}  Bd2 {[%clk 0:01:02]} 19. Rxd2 {[%clk 0:00:47]}  Rxd2 {[%clk 0:01:03]} 20. Bxd2 {[%clk 0:00:48]}  Qxd2 {[%clk 0:01:04]} 21. f4 {[%clk 0:00:47]}  Rd8 {[%clk 0:00:38]} 22. Rd1 {[%clk 0:00:45]}  Qa5 {[%clk 0:00:39]} 23. Rxd8+ {[%clk 0:00:42]}  Qxd8 {[%clk 0:00:40]} 24. Qe3 {[%clk 0:00:33]}  Nd4 {[%clk 0:00:36]} 25. Be4 {[%clk 0:00:31]}  b6 {[%clk 0:00:36]} 26. Qd3 {[%clk 0:00:29]}  Qf6 {[%clk 0:00:31]} 27. g5 {[%clk 0:00:28]}  Qd8 {[%clk 0:00:29]} 28. b4 {[%clk 0:00:25]}  Qd6 {[%clk 0:00:29]} 29. Kb2 {[%clk 0:00:23]}  e5 {[%clk 0:00:28]} 30. Bd5 {[%clk 0:00:20]}  Ne6 {[%clk 0:00:24]} 31. f5 {[%clk 0:00:16]}  Nxg5 {[%clk 0:00:19]} 32. h4 {[%clk 0:00:17]}  e4 {[%clk 0:00:17]} 33. Qd4 {[%clk 0:00:17]}  Qh2+ {[%clk 0:00:17]} 34. Kb3 {[%clk 0:00:17]}  Qxh4 {[%clk 0:00:17]} 35. fxg6 {[%clk 0:00:15]}  hxg6 {[%clk 0:00:16]} 36. Qxb6 {[%clk 0:00:16]}  Qg3+ {[%clk 0:00:16]} 37. Ka4 {[%clk 0:00:16]}  e3 {[%clk 0:00:15]} 38. Qxg6+ {[%clk 0:00:16]}  Kf8 {[%clk 0:00:15]} 39. Qh6+ {[%clk 0:00:09]}  Ke7 {[%clk 0:00:13]} 40. Qb6 {[%clk 0:00:05]}  e2 {[%clk 0:00:10]} 41. Qc7+ {[%clk 0:00:05]}  Qxc7 {[%clk 0:00:10]} 0-1


[Site "https://www.chess.com"]